bitfinex-derivatives/quotes_BTCF0:USTF0_20250805
["timestamp","ask_amount","ask_price","bid_price","bid_amount"]
[1754434876545,0.3943455,113980.0,113970.0,0.15734801]
[1754434876752,1.62205582,113980.0,113970.0,0.75590801]
[1754434876950,1.62205582,113980.0,113970.0,0.59856]
[1754434877458,1.62205582,113980.0,113960.0,0.15734801]
[1754434877459,0.4378109,113970.0,113960.0,0.15734801]
[1754434877651,0.1755063,113960.0,113950.0,1.34728851]
[1754434877845,1.21035646,113960.0,113950.0,1.34728851]
[1754434878050,1.21035646,113960.0,113950.0,1.94580851]
[1754434878252,1.21035646,113960.0,113950.0,2.05955851]
[1754434878453,1.21035646,113960.0,113950.0,2.10946851]
[1754434878654,1.21035646,113960.0,113950.0,1.97522]
[1754434878956,1.21135646,113960.0,113950.0,1.97522]
[1754434879158,1.21335646,113960.0,113950.0,1.97522]
[1754434879648,1.21235646,113960.0,113950.0,1.97522]
[1754434880254,1.21235646,113960.0,113950.0,0.87107]
[1754434880958,1.21035646,113960.0,113950.0,0.87107]
[1754434881153,0.7986263,113960.0,113950.0,0.87107]
[1754434881356,1.21035646,113960.0,113950.0,0.87107]
[1754434882160,0.1755063,113960.0,113950.0,1.81912196]
[1754434882758,0.75374986,113970.0,113960.0,0.4415263]
[1754434882959,0.87351986,113970.0,113960.0,0.85325646]
[1754434883165,0.94690986,113970.0,113960.0,0.4415263]
[1754434883759,0.99077986,113970.0,113960.0,0.4415263]
[1754434884156,0.99077986,113970.0,113960.0,0.26602]
[1754434884766,0.99077986,113970.0,113960.0,0.26702]
[1754434885066,0.99077986,113970.0,113960.0,0.26802]
[1754434885255,0.5790497,113970.0,113960.0,0.26802]
[1754434885462,0.99077986,113970.0,113960.0,0.4435263]
[1754434886166,0.5790497,113970.0,113960.0,0.4435263]
[1754434886362,0.99077986,113970.0,113960.0,0.4435263]
[1754434887259,0.99077986,113970.0,113960.0,0.8043263]
[1754434887459,0.99077986,113970.0,113960.0,0.4435263]
[1754434888569,0.5790497,113970.0,113960.0,0.8043263]
[1754434888864,0.2632537,113970.0,113960.0,1.21605646]
[1754434889769,0.67498386,113970.0,113960.0,1.21605646]
[1754434889972,0.89586446,113980.0,113970.0,0.4415109]
[1754434890162,0.94688446,113980.0,113970.0,1.45184106]
[1754434890763,0.99075446,113980.0,113970.0,1.45184106]
[1754434890959,0.99075446,113980.0,113970.0,1.0401109]
[1754434891968,0.73934726,113990.0,113980.0,0.4414956]
[1754434892175,0.79036726,113990.0,113980.0,1.21402576]
[1754434892378,0.85911726,113990.0,113980.0,1.21402576]
[1754434892671,0.90298726,113990.0,113980.0,0.8022956]
[1754434893672,0.90298726,113990.0,113980.0,0.95935627]
[1754434894067,0.63106726,113990.0,113980.0,1.37108643]
[1754434894369,0.66595726,113990.0,113980.0,1.37208643]
[1754434894574,0.73470726,113990.0,113980.0,1.37308643]
[1754434894775,0.78572726,113990.0,113980.0,1.37308643]
[1754434894966,0.3739971,113990.0,113980.0,1.37308643]
[1754434895166,0.78572726,113990.0,113980.0,1.37308643]
[1754434895361,0.63106726,113990.0,113980.0,1.37308643]
[1754434895770,0.2193371,113990.0,113980.0,1.37308643]
[1754434895970,0.66595726,113990.0,113980.0,1.37308643]
[1754434896169,0.2542271,113990.0,113980.0,1.37308643]
[1754434896372,0.66595726,113990.0,113980.0,1.37308643]
[1754434896574,0.78572726,113990.0,113980.0,1.37308643]
[1754434896777,0.2103601,113990.0,113980.0,1.37308643]
[1754434896975,0.1754701,113990.0,113980.0,1.37308643]
[1754434897176,0.1754601,113990.0,113980.0,1.50468583]
[1754434897571,0.67491446,114000.0,113990.0,0.4414801]
[1754434897771,0.67491446,114000.0,113990.0,1.45169026]
[1754434897972,0.77855446,114000.0,113990.0,1.0399601]
[1754434898274,0.85933446,114000.0,113990.0,1.81249026]
[1754434898676,0.4912343,114000.0,113990.0,1.4007601]
[1754434899573,0.5351043,114000.0,113990.0,1.0399601]
[1754434899881,0.5351043,114000.0,113990.0,1.4007601]
[1754434900481,0.5351043,114000.0,113990.0,1.4017601]
[1754434901081,0.5351043,114000.0,113990.0,1.4027601]
[1754434901581,0.5351043,114000.0,113990.0,1.0419601]
[1754434901782,0.5351043,114000.0,113990.0,1.4027601]
[1754434903584,0.5351043,114000.0,113990.0,1.2273]
[1754434903784,0.5351043,114000.0,113990.0,0.8665]
[1754434903982,0.90085885,114000.0,113990.0,0.8665]
[1754434904583,0.90085885,114000.0,113990.0,1.0419601]
[1754434906690,0.90085885,114000.0,113990.0,0.8665]
[1754434907188,0.90085885,114000.0,113990.0,1.0419602]
[1754434908490,0.5351043,114000.0,113990.0,1.0419602]
[1754434908892,0.90085885,114000.0,113990.0,1.0419602]
[1754434909291,0.5351043,114000.0,113990.0,1.0419602]
[1754434909494,0.90085885,114000.0,113990.0,1.0419602]
[1754434911692,0.90085885,114000.0,113990.0,0.81452]
[1754434912191,0.90085885,114000.0,113990.0,0.8628]
[1754434912795,0.90085885,114000.0,113990.0,0.8618]
[1754434913388,0.90085885,114000.0,113990.0,1.0372601]
[1754434913693,0.90085885,114000.0,113990.0,1.0362601]
[1754434913894,0.90085885,114000.0,113990.0,0.8608]
[1754434915596,0.90085885,114000.0,113990.0,1.0362601]
[1754434916593,0.5351043,114000.0,113990.0,1.0362601]
[1754434916894,0.90085885,114000.0,113990.0,1.0362601]
[1754434918100,0.90085885,114000.0,113990.0,1.0372601]
[1754434918298,0.90085885,114000.0,113990.0,1.0382601]
[1754434918700,0.94663236,114000.0,113990.0,1.0382601]
[1754434920101,0.94663236,114000.0,113990.0,1.19532077]
[1754434921101,0.94663236,114000.0,113990.0,1.01986067]
[1754434921299,0.94663236,114000.0,113990.0,1.19532087]
[1754434922496,0.94663236,114000.0,113990.0,1.55612087]
[1754434922697,0.78299236,114000.0,113990.0,1.96764893]
[1754434922897,0.85155236,114000.0,113990.0,1.55612087]
[1754434923106,0.90172236,114000.0,113990.0,1.55612087]
[1754434923607,0.94440236,114000.0,113990.0,1.19532087]
[1754434926522,0.94440236,114000.0,113990.0,1.01986067]
[1754434926822,0.5328743,114000.0,113990.0,1.19532027]
[1754434927012,0.94440236,114000.0,113990.0,1.19532027]
[1754434929120,0.70960236,114000.0,113990.0,1.19532027]
[1754434929319,0.78272236,114000.0,113990.0,1.19532027]
[1754434929618,0.90145236,114000.0,113990.0,1.19532027]
[1754434929819,0.94413236,114000.0,113990.0,1.19532027]
[1754434931024,0.94413236,114000.0,113990.0,1.01986067]
[1754434933127,0.94413236,114000.0,113990.0,1.19532027]
[1754434936016,0.94413236,114000.0,113990.0,1.60684833]
[1754434936221,0.94413236,114000.0,113990.0,1.96764833]
[1754434936518,0.94413236,114000.0,113990.0,1.55612027]
[1754434937223,0.94413236,114000.0,113990.0,1.19532027]
[1754434939218,0.94413236,114000.0,113990.0,1.60684833]
[1754434939626,0.94413236,114000.0,113990.0,1.19532027]
[1754434940826,0.5326043,114000.0,113990.0,1.19532027]
[1754434941026,0.94413236,114000.0,113990.0,1.19532027]
[1754434941223,0.94413236,114000.0,113990.0,1.0382596]
[1754434941425,0.94413236,114000.0,113990.0,1.19581126]
[1754434941624,0.94413236,114000.0,113990.0,1.60733932]
[1754434941927,0.94413236,114000.0,113990.0,1.19581126]
[1754434942122,0.94413236,114000.0,113990.0,1.02035166]
[1754434942322,0.94413236,114000.0,113990.0,1.19581116]
[1754434942727,0.5326043,114000.0,113990.0,1.19581116]
[1754434943026,0.94413236,114000.0,113990.0,1.0382595]
[1754434946731,0.90145236,114000.0,113990.0,1.0382595]
[1754434946925,0.94557236,114000.0,113990.0,1.0382595]
[1754434948530,0.94557236,114000.0,113990.0,1.3990595]
[1754434949234,0.5273128,114010.0,114000.0,0.435384]
[1754434949526,0.98296086,114010.0,114000.0,0.67146806]
[1754434949731,0.98296086,114010.0,114000.0,0.435384]
[1754434951935,0.98296086,114010.0,114000.0,0.84691206]
[1754434952136,0.5714328,114010.0,114000.0,0.84691206]
[1754434952332,0.98296086,114010.0,114000.0,0.84691206]
[1754434952534,0.98296086,114010.0,114000.0,1.20771206]
[1754434952828,0.71855086,114010.0,114000.0,1.20771206]
[1754434953030,0.98364994,114020.0,114010.0,0.4044872]
[1754434953244,0.98364994,114020.0,114010.0,1.77489526]
[1754434954239,0.98664994,114020.0,114010.0,1.78355598]
[1754434954835,0.98464994,114020.0,114010.0,1.78455598]
[1754434956035,0.98364994,114020.0,114010.0,1.78555598]
[1754434957438,0.98364994,114020.0,114010.0,1.42475598]
[1754434957929,0.57212188,114020.0,114010.0,1.78555598]
[1754434958128,0.98364994,114020.0,114010.0,1.78555598]
[1754434958934,0.98364994,114020.0,114010.0,1.42475598]
[1754434960432,0.98364994,114020.0,114010.0,1.78555598]
[1754434962241,0.98364994,114020.0,114010.0,1.42475598]
[1754434962442,0.98364994,114020.0,114010.0,1.78555598]
[1754434962739,0.57212188,114020.0,114010.0,1.78555598]
[1754434962939,0.98364994,114020.0,114010.0,1.78555598]
[1754434963240,0.57212188,114020.0,114010.0,1.78555598]
[1754434963730,0.98364994,114020.0,114010.0,1.78555598]
[1754434964128,0.17614278,114020.0,114010.0,1.78555598]
[1754434964336,0.22026278,114020.0,114010.0,1.78555598]
[1754434965841,0.22026278,114020.0,114010.0,1.18747598]
[1754434965842,0.85208084,114020.0,114010.0,1.18747598]
[1754434966042,0.85208084,114020.0,114010.0,1.42463598]
[1754434966341,0.85208084,114020.0,114010.0,1.78543598]
[1754434966641,0.44055278,114020.0,114010.0,1.78543598]
[1754434966836,0.85208084,114020.0,114010.0,1.78543598]
[1754434967538,0.85208084,114020.0,114010.0,1.78539598]
[1754434968945,0.80404084,114020.0,114010.0,1.78539598]
[1754434969142,0.69416084,114020.0,114010.0,1.78539598]
[1754434969442,0.69416084,114020.0,114010.0,1.78535598]
[1754434969641,0.28263278,114020.0,114010.0,1.78535598]
[1754434969838,0.58767084,114020.0,114010.0,1.78535598]
[1754434970044,0.17614278,114020.0,114010.0,1.78535598]
[1754434975535,0.28140278,114020.0,114010.0,1.78535598]
[1754434975740,0.73835084,114020.0,114010.0,1.78535598]
[1754434975939,0.80606084,114020.0,114010.0,1.78535598]
[1754434977047,0.85270084,114020.0,114010.0,1.78535598]
[1754434977947,0.44117278,114020.0,114010.0,1.78535598]
[1754434979045,0.44117278,114020.0,114010.0,1.42455598]
[1754434979252,0.44117278,114020.0,114010.0,1.78535598]
[1754434981552,0.17614278,114020.0,114010.0,1.78535598]
[1754434981749,0.00071568,114020.0,114010.0,1.78535598]
[1754434981951,0.17612888,114020.0,114010.0,1.78535598]
[1754434983859,0.00071568,114020.0,114010.0,1.78535598]
[1754434984156,0.00071568,114020.0,114010.0,2.04825598]
[1754434984753,0.00071568,114020.0,114010.0,2.14825598]
[1754434985153,0.00071568,114020.0,114010.0,1.73672792]
[1754434985461,0.00071568,114020.0,114010.0,2.14825598]
[1754434987256,0.17612898,114020.0,114010.0,1.73672792]
[1754434987456,0.17612898,114020.0,114010.0,2.14825598]
[1754434995164,0.00071568,114020.0,114010.0,2.14825598]
[1754434996360,0.2192503,114030.0,114010.0,2.38977164]
[1754434996555,0.1754005,114030.0,114020.0,0.7845666]
[1754434996752,0.1754005,114030.0,114020.0,1.19609466]
[1754434996959,0.6677402,114040.0,114020.0,0.96684896]
[1754434997163,0.8843502,114040.0,114030.0,0.9598958]
[1754434997465,1.34251826,114040.0,114030.0,1.37142386]
[1754434997661,0.9309902,114040.0,114030.0,1.37142386]
[1754434998261,10.0,114050.0,114030.0,1.1681588]
[1754434998262,10.2628274,114050.0,114030.0,1.1681588]
[1754434998466,10.4210222,114050.0,114040.0,0.315365]
[1754434998662,10.83255026,114050.0,114040.0,0.55151056]
[1754434998860,10.83255026,114050.0,114040.0,0.1399825]
[1754434999060,10.83255026,114050.0,114040.0,0.55151056]
[1754434999267,10.4210222,114050.0,114040.0,0.1399825]
[1754434999460,10.4210222,114050.0,114040.0,0.55151056]
[1754434999661,10.83255026,114050.0,114040.0,0.72689346]
[1754434999861,10.83255026,114050.0,114040.0,0.1399825]
[1754435000064,10.83255026,114050.0,114040.0,0.55151056]
[1754435000270,10.4210222,114050.0,114040.0,0.55151056]
[1754435000471,10.83255026,114050.0,114040.0,0.55151056]
[1754435000770,10.4210222,114050.0,114040.0,0.1399825]
[1754435001171,10.4220222,114050.0,114040.0,0.1399825]
[1754435001371,10.4240222,114050.0,114040.0,0.1399825]
[1754435001572,10.4240222,114050.0,114040.0,0.0985325]
[1754435002075,0.4436229,114040.0,114030.0,0.6951069]
[1754435002373,0.4436229,114040.0,114030.0,1.66647969]
[1754435004570,0.26824,114040.0,114030.0,1.66647969]
[1754435004772,0.443623,114040.0,114030.0,1.66647969]
[1754435004973,0.329343,114040.0,114030.0,1.3025069]
[1754435005172,0.443623,114040.0,114030.0,1.3035069]
[1754435005566,0.443623,114040.0,114030.0,1.66895969]
[1754435005768,0.443623,114040.0,114030.0,1.66995969]
[1754435006669,0.175383,114040.0,114030.0,1.66995969]
[1754435007173,10.3357359,114050.0,114040.0,0.334303]
[1754435007473,10.2857459,114050.0,114040.0,0.85671206]
[1754435007680,10.3357359,114050.0,114040.0,0.85671206]
[1754435007975,10.3357359,114050.0,114040.0,1.21751206]
[1754435008163,10.3357359,114050.0,114040.0,1.06055579]
[1754435009064,10.16036,114050.0,114040.0,1.06055579]
[1754435009277,10.0,114050.0,114040.0,1.06055579]
[1754435009470,10.16036,114050.0,114040.0,1.06055579]
[1754435009674,10.16036,114050.0,114040.0,1.21751206]
[1754435010070,10.0,114050.0,114040.0,1.21751206]
[1754435010376,9.99151119,114050.0,114040.0,1.21951206]
[1754435010572,9.99151119,114050.0,114040.0,1.06255579]
[1754435011072,10.15187119,114050.0,114040.0,1.06255579]
[1754435011279,9.01660791,114050.0,114040.0,2.09006126]
[1754435011474,8.84613445,114050.0,114040.0,2.19306126]
[1754435011679,8.84613445,114050.0,114040.0,2.70174126]
[1754435011977,8.82728445,114050.0,114040.0,3.20174126]
[1754435012173,8.69094445,114050.0,114040.0,3.20174126]
[1754435012480,8.69094445,114050.0,114040.0,3.30174126]
[1754435012973,8.65131445,114050.0,114040.0,3.30174126]
[1754435013177,7.88524148,114050.0,114040.0,3.30174126]
[1754435013377,7.84642148,114050.0,114040.0,3.30174126]
[1754435013971,7.84642148,114050.0,114040.0,3.55314053]
[1754435014172,7.12592558,114050.0,114040.0,3.55314053]
[1754435014379,7.12294558,114050.0,114040.0,3.55314053]
[1754435014578,7.16489558,114050.0,114040.0,2.94446053]
[1754435014782,7.16489558,114050.0,114040.0,3.25390513]
[1754435014783,7.28330558,114050.0,114040.0,3.25390513]
[1754435015580,7.28330558,114050.0,114040.0,2.88845234]
[1754435015782,7.16489558,114050.0,114040.0,2.64074513]
[1754435015983,7.28330558,114050.0,114040.0,2.79942847]
[1754435016979,7.28330558,114050.0,114040.0,2.43453568]
[1754435017181,7.28330558,114050.0,114040.0,2.79998847]
[1754435018076,7.28330558,114050.0,114040.0,2.59064258]
[1754435018277,7.28330558,114050.0,114040.0,2.29064258]
[1754435018477,7.28330558,114050.0,114040.0,2.11527458]
[1754435018674,9.32412607,114050.0,114040.0,1.4137899]
[1754435018875,9.32412607,114050.0,114040.0,1.753663]
[1754435019176,9.32412607,114050.0,114040.0,1.57828]
[1754435019383,9.32412607,114050.0,114040.0,1.753663]
[1754435019585,9.32412607,114050.0,114040.0,0.9648]
[1754435019783,9.32412607,114050.0,114040.0,0.4648]
[1754435020084,9.32412607,114050.0,114040.0,2.4465223]
[1754435020284,9.32412607,114050.0,114040.0,2.6219053]
[1754435020683,9.32412607,114050.0,114040.0,2.465783]
[1754435021084,9.32412607,114050.0,114040.0,2.465703]
[1754435022485,8.95867328,114050.0,114040.0,2.465703]
[1754435022783,8.78330558,114050.0,114040.0,2.465703]
[1754435022981,8.78330558,114050.0,114040.0,2.83115579]
[1754435023686,7.16489558,114050.0,114040.0,2.83087579]
[1754435024080,8.66489558,114050.0,114040.0,2.83087579]
[1754435024594,8.73331558,114050.0,114040.0,2.86610579]
[1754435024793,8.78330558,114050.0,114040.0,2.86610579]
[1754435026691,8.78330558,114050.0,114040.0,2.500653]
[1754435026892,8.78330558,114050.0,114040.0,2.86610579]
[1754435028291,8.78330558,114050.0,114040.0,2.492293]
[1754435030199,8.78330558,114050.0,114040.0,2.85774579]
[1754435031199,8.78330558,114050.0,114040.0,2.86046579]
[1754435031399,8.78330558,114050.0,114040.0,2.495013]
[1754435031599,8.78330558,114050.0,114040.0,2.86046579]
[1754435032198,8.7529092,114050.0,114040.0,2.86046579]
[1754435032798,8.7587892,114050.0,114040.0,3.28828885]
[1754435032993,7.2587892,114050.0,114040.0,3.28628885]
[1754435033194,7.2587892,114050.0,114040.0,3.28928885]
[1754435033493,7.2587892,114050.0,114040.0,3.78928885]
[1754435033894,7.2587892,114050.0,114040.0,3.78292885]
[1754435035402,7.2587892,114050.0,114040.0,3.60756085]
[1754435035591,7.2587892,114050.0,114040.0,3.78292885]
[1754435035791,7.2587892,114050.0,114040.0,4.14372885]
[1754435037701,7.2587892,114050.0,114040.0,3.96836085]
[1754435039402,7.2587892,114050.0,114040.0,3.81195047]
[1754435040300,7.2587892,114050.0,114040.0,3.96875516]
[1754435041002,7.2587892,114050.0,114040.0,3.81195047]
[1754435041502,7.2587892,114050.0,114040.0,3.330463]
[1754435041705,7.2587892,114050.0,114040.0,3.330263]
[1754435043002,7.2497692,114050.0,114040.0,2.830263]
[1754435043505,7.2480992,114050.0,114040.0,2.830263]
[1754435044404,7.2480992,114050.0,114040.0,3.19571579]
[1754435044599,7.2480992,114050.0,114040.0,2.830263]
[1754435044804,7.2480992,114050.0,114040.0,2.845133]
[1754435045302,7.2480992,114050.0,114040.0,3.19571579]
[1754435045502,7.2480992,114050.0,114040.0,2.830263]
[1754435046106,7.2468992,114050.0,114040.0,2.830263]
[1754435046507,6.6962892,114050.0,114040.0,2.830263]
[1754435048906,6.6962892,114050.0,114040.0,2.845133]
[1754435049105,6.6962892,114050.0,114040.0,2.856053]
[1754435049306,6.6962892,114050.0,114040.0,3.118953]
[1754435049507,6.6962892,114050.0,114040.0,3.48440579]
[1754435049808,6.6962892,114050.0,114040.0,3.68756318]
[1754435051010,6.6962892,114050.0,114040.0,3.48440579]
[1754435052117,6.6962892,114050.0,114040.0,3.73580506]
[1754435052407,6.6962892,114050.0,114040.0,3.37035227]
[1754435052713,6.6962892,114050.0,114040.0,3.73580506]
[1754435053317,6.6962892,114050.0,114040.0,3.37035227]
[1754435053517,6.6962892,114050.0,114040.0,3.73580506]
[1754435053704,6.6962892,114050.0,114040.0,3.35943227]
[1754435053909,6.6962892,114050.0,114040.0,3.34348227]
[1754435059116,6.6962892,114050.0,114040.0,3.09545227]
[1754435059318,6.6962892,114050.0,114040.0,3.10637227]
[1754435062718,6.6962892,114050.0,114040.0,3.47182506]
[1754435063018,6.6962892,114050.0,114040.0,3.10637227]
[1754435064218,6.6962892,114050.0,114040.0,2.854973]
[1754435065418,6.6962892,114050.0,114040.0,3.22042579]
[1754435070223,6.6962892,114050.0,114040.0,3.47182506]
[1754435070815,6.6962892,114050.0,114040.0,3.10637227]
[1754435071124,6.6962892,114050.0,114040.0,3.47182506]
[1754435071623,6.6962892,114050.0,114040.0,3.10637227]
[1754435071823,4.3120192,114050.0,114040.0,3.47182506]
[1754435072423,4.3120192,114050.0,114040.0,3.10637227]
[1754435074328,4.3120192,114050.0,114040.0,3.47182506]
[1754435076126,4.3120192,114050.0,114040.0,3.56018974]
[1754435076428,4.3120192,114050.0,114040.0,3.56686974]
[1754435076627,4.3120192,114050.0,114040.0,3.66686974]
[1754435077222,4.1458292,114050.0,114040.0,3.65850974]
[1754435077423,4.1278292,114050.0,114040.0,3.65850974]
[1754435077727,4.2476392,114050.0,114040.0,3.66686974]
[1754435078221,4.2476392,114050.0,114040.0,3.38064047]
[1754435078422,4.2476392,114050.0,114040.0,3.40803047]
[1754435079028,4.2476392,114050.0,114040.0,3.41639047]
[1754435080334,4.2476392,114050.0,114040.0,3.66778974]
[1754435081535,4.2407692,114050.0,114040.0,3.66778974]
[1754435081725,4.22534676,114050.0,114040.0,3.87182721]
[1754435082130,4.20637676,114050.0,114040.0,4.37182721]
[1754435082332,4.20637676,114050.0,114040.0,4.12042794]
[1754435082628,4.20284232,114050.0,114040.0,4.12042794]
[1754435084330,3.72503906,114050.0,114040.0,4.63138073]
[1754435084541,3.54423906,114050.0,114040.0,4.63138073]
[1754435084735,3.52325709,114050.0,114040.0,4.63138073]
[1754435084933,3.64978709,114050.0,114040.0,4.63138073]
[1754435085235,3.64978709,114050.0,114040.0,4.06189047]
[1754435086224,3.47618709,114050.0,114040.0,4.06189047]
[1754435086428,2.76555414,114050.0,114040.0,4.60271126]
[1754435086630,2.50250414,114050.0,114040.0,4.60271126]
[1754435086822,2.4603353,114050.0,114040.0,4.60271126]
[1754435087030,2.18197123,114050.0,114040.0,4.60271126]
[1754435087230,1.98571123,114050.0,114040.0,4.60271126]
[1754435087434,2.02975923,114050.0,114040.0,4.60271126]
[1754435087638,1.81822319,114050.0,114040.0,4.60271126]
[1754435087934,1.60214319,114050.0,114040.0,4.60271126]
[1754435088130,1.16562912,114050.0,114040.0,4.60271126]
[1754435088335,1.12491505,114050.0,114040.0,4.60271126]
[1754435088636,1.03723098,114050.0,114040.0,4.60271126]
[1754435089036,1.03291127,114050.0,114040.0,4.60271126]
[1754435089434,0.97171127,114050.0,114040.0,4.60271126]
[1754435089736,0.88139327,114050.0,114040.0,4.60271126]
[1754435090042,0.86378727,114050.0,114040.0,4.85325153]
[1754435090739,0.86378727,114050.0,114040.0,5.11615153]
[1754435091641,1.02038727,114050.0,114040.0,5.11615153]
[1754435091838,1.08756727,114050.0,114040.0,5.11615153]
[1754435092141,0.95096727,114050.0,114040.0,4.86561126]
[1754435092840,0.90713281,114050.0,114040.0,4.86561126]
[1754435093933,0.83995281,114050.0,114040.0,4.86561126]
[1754435094540,0.83995281,114050.0,114040.0,5.11597894]
[1754435094743,0.83995281,114050.0,114040.0,4.94061094]
[1754435095644,0.66931484,114050.0,114040.0,4.94061094]
[1754435095835,0.39539484,114050.0,114040.0,4.94061094]
[1754435096147,0.39275382,114050.0,114040.0,4.94061094]
[1754435096741,0.38934701,114050.0,114040.0,5.12121094]
[1754435097842,0.28967509,114050.0,114040.0,5.12121094]
[1754435098734,0.28967509,114050.0,114040.0,4.87084326]
[1754435099135,0.27233609,114050.0,114040.0,4.87084326]
[1754435099439,0.09334609,114050.0,114040.0,4.87084326]
[1754435100337,0.38220609,114050.0,114040.0,4.13993768]
[1754435100641,0.38220609,114050.0,114040.0,4.55077491]
[1754435101031,0.38220609,114050.0,114040.0,4.96161214]
[1754435101237,0.38220609,114050.0,114040.0,4.55077491]
[1754435101545,0.33583,114050.0,114040.0,4.55077491]
[1754435101841,0.33583,114050.0,114040.0,4.40527491]
[1754435102537,0.33583,114050.0,114040.0,4.66817491]
[1754435102742,0.33583,114050.0,114040.0,4.98771494]
[1754435102936,0.1787,114050.0,114040.0,4.97935494]
[1754435103234,0.1787,114050.0,114040.0,4.36791494]
[1754435103435,0.33583,114050.0,114040.0,3.80607768]
[1754435103641,0.33583,114050.0,114040.0,4.17126631]
[1754435104229,0.33583,114050.0,114040.0,4.07126631]
[1754435105238,0.33583,114050.0,114040.0,3.80836631]
[1754435105439,0.33583,114050.0,114040.0,2.81953768]
[1754435105642,0.33583,114050.0,114040.0,3.79684631]
[1754435106038,0.33583,114050.0,114040.0,3.18472631]
[1754435106233,0.5111988,114050.0,114040.0,2.62836468]
[1754435106435,0.87638743,114050.0,114040.0,3.40341435]
[1754435106835,0.5111988,114050.0,114040.0,3.40341435]
[1754435107032,0.5111988,114050.0,114040.0,2.79129435]
[1754435107231,0.5111988,114050.0,114040.0,2.90353435]
[1754435108238,0.5111988,114050.0,114040.0,2.29129435]
[1754435108439,0.87638743,114050.0,114040.0,2.04068]
[1754435108645,1.17638743,114050.0,114040.0,2.04068]
[1754435108943,0.87638743,114050.0,114040.0,2.65268]
[1754435109139,0.87638743,114050.0,114040.0,2.85641803]
[1754435109344,0.5111988,114050.0,114040.0,2.85341803]
[1754435109543,0.5111988,114050.0,114040.0,2.85441803]
[1754435110138,0.5111988,114050.0,114040.0,2.85341803]
[1754435110334,0.5111988,114050.0,114040.0,2.64968]
[1754435110550,0.5111988,114050.0,114040.0,2.64568]
[1754435110748,0.5131988,114050.0,114040.0,2.64568]
[1754435111641,0.33783,114050.0,114040.0,2.8709449]
[1754435111841,0.33783,114050.0,114040.0,2.9075849]
[1754435112043,0.33783,114050.0,114040.0,3.11125275]
[1754435112748,0.33783,114050.0,114040.0,3.11225275]
[1754435112941,0.33783,114050.0,114040.0,3.11253275]
[1754435113147,0.33783,114050.0,114040.0,3.47772138]
[1754435113949,0.33583,114050.0,114040.0,3.11353275]
[1754435114449,0.33583,114050.0,114040.0,3.27505353]
[1754435116356,0.33583,114050.0,114040.0,3.47855949]
[1754435118058,0.04697,114050.0,114040.0,3.47855949]
[1754435118247,0.04697,114050.0,114040.0,3.48691949]
[1754435119151,0.33457,114060.0,114050.0,0.3884995]
[1754435119351,0.07615,114060.0,114050.0,1.99742813]
[1754435119654,0.33457,114060.0,114050.0,2.09742813]
[1754435120152,0.26739,114070.0,114060.0,0.5709859]
[1754435120338,0.26739,114070.0,114060.0,1.5434659]
[1754435120339,0.04571,114070.0,114060.0,1.5434659]
[1754435120545,0.04571,114070.0,114060.0,1.90865453]
[1754435120942,0.00071568,114080.0,114060.0,1.77713723]
[1754435121148,0.04642568,114080.0,114070.0,1.67140503]
[1754435121344,0.04642568,114080.0,114070.0,1.87491099]
[1754435121850,0.05006568,114080.0,114070.0,1.87491099]
[1754435122057,0.05006568,114080.0,114070.0,1.94597226]
[1754435122254,0.27911568,114080.0,114070.0,1.94597226]
[1754435122455,0.34319568,114080.0,114070.0,1.7424663]
[1754435122650,0.34419568,114080.0,114070.0,1.7424663]
[1754435123751,0.34419568,114080.0,114070.0,1.37727767]
[1754435123947,0.34419568,114080.0,114070.0,1.7424663]
[1754435124349,0.34619568,114080.0,114070.0,1.7424663]
[1754435124549,0.28211568,114080.0,114070.0,1.7424663]
[1754435124749,0.00371568,114080.0,114070.0,1.7424663]
[1754435124953,0.05306568,114080.0,114070.0,1.7424663]
[1754435125254,0.05306568,114080.0,114070.0,1.94580329]
[1754435126452,0.05306568,114080.0,114070.0,1.7424663]
[1754435127559,0.05306568,114080.0,114070.0,1.8424663]
[1754435128259,0.08448568,114080.0,114070.0,1.8424663]
[1754435128459,0.17764568,114080.0,114070.0,1.8424663]
[1754435128661,0.52051918,114080.0,114070.0,1.29365887]
[1754435128862,0.88570781,114080.0,114070.0,1.29365887]
[1754435129359,0.51851918,114080.0,114070.0,1.29365887]
[1754435129560,0.51851918,114080.0,114070.0,1.29465887]
[1754435129765,0.51851918,114080.0,114070.0,2.50645887]
[1754435130556,0.34319568,114080.0,114070.0,2.68179767]
[1754435131065,0.34319568,114080.0,114070.0,2.68143767]
[1754435131859,0.34319568,114080.0,114070.0,3.0466263]
[1754435132055,0.34319568,114080.0,114070.0,3.0549863]
[1754435132259,0.05006568,114080.0,114070.0,3.0549863]
[1754435132459,0.04935,114080.0,114070.0,3.25832329]
[1754435133070,0.04935,114080.0,114070.0,2.89313466]
[1754435133367,0.04935,114080.0,114070.0,3.25832329]
[1754435133759,0.04935,114080.0,114070.0,3.0549863]
[1754435133954,0.04935,114080.0,114070.0,3.0539863]
[1754435134160,0.04935,114080.0,114070.0,2.69079767]
[1754435134359,0.04935,114080.0,114070.0,3.0569863]
[1754435134864,0.17393,114080.0,114070.0,3.0549863]
[1754435135066,0.34248,114080.0,114070.0,3.3188863]
[1754435135266,0.5178035,114080.0,114070.0,3.1351875]
[1754435135468,0.5178035,114080.0,114070.0,2.76899887]
[1754435136059,0.5178035,114080.0,114070.0,2.97233586]
[1754435136666,0.34248,114080.0,114070.0,3.14767466]
[1754435137167,0.34248,114080.0,114070.0,3.14667466]
[1754435137564,0.34248,114080.0,114070.0,3.15503466]
[1754435137967,0.34248,114080.0,114070.0,3.52022329]
[1754435138672,0.5178035,114080.0,114070.0,3.34488449]
[1754435138865,0.34248,114080.0,114070.0,3.34488449]
[1754435139067,0.5178034,114080.0,114070.0,3.34488449]
[1754435140873,0.5178034,114080.0,114070.0,2.97969586]
[1754435141075,0.5178034,114080.0,114070.0,3.34488449]
[1754435141476,0.5178034,114080.0,114070.0,3.08198449]
[1754435142669,0.34248,114080.0,114070.0,3.25732329]
[1754435143277,0.34248,114080.0,114070.0,3.0539863]
[1754435143478,0.5178035,114080.0,114070.0,3.0539863]
[1754435143776,0.5178035,114080.0,114070.0,2.8786475]
[1754435143975,0.5178035,114080.0,114070.0,3.08194106]
[1754435145276,0.5178035,114080.0,114070.0,3.0539863]
[1754435145673,0.5178035,114080.0,114070.0,2.51345887]
[1754435145980,0.5178035,114080.0,114070.0,2.8786475]
[1754435146472,0.5178035,114080.0,114070.0,3.2887699]
[1754435147579,0.5178035,114080.0,114070.0,3.4641087]
[1754435147779,0.5178035,114080.0,114070.0,3.09892007]
[1754435148082,0.5178035,114080.0,114070.0,3.4641087]
[1754435149481,0.5178035,114080.0,114070.0,3.2887699]
[1754435149782,0.5178035,114080.0,114070.0,2.92358127]
[1754435150081,0.5178035,114080.0,114070.0,3.2887699]
[1754435150781,0.5178035,114080.0,114070.0,3.53938425]
[1754435152685,0.5178035,114080.0,114070.0,3.80228425]
[1754435153483,0.87917213,114080.0,114070.0,3.43065562]